Cogmind - Beta 16 @@@ ROGUE MODE // 2026.01.11 @ 23:37:58 Player: AngelSpirit Result: Destroyed by Lightning with EMDS Performance ------------- Evolutions (4) 2000 Regions Visited (11) 2200 Robots Destroyed (125) 625 Value Destroyed (5585) 5585 Prototype IDs (32) 640 Alien Tech Used (0) 0 Bonus (3713) 3713 TOTAL SCORE: 14763 Bonus ------- High Alert Combat Kills 605 Follower Combat Kills 1526 Network Hubs Disabled 200 Registered with UFD 300 Met Optimus in HQ 500 Met Zhirov 300 Met R17 at Cetus 500 Friendly Fire -218 Cogmind --------- Core Integrity 0/850 Matter 146/300 Energy 99/100 System Corruption 28% Temperature Cool (0) Movement Core (50) Location -6/Hub_04(d) Parts ------- > --- POWER (1) -------- (None) > --- PROPULSION (4) --- (None) > --- UTILITY (7) ------ (None) > --- WEAPON (3) ------- (None) > --- INVENTORY (5) ---- Deep Structural Scanner Large Botcube Peak State ------------ > --- POWER ------------ Light Angular Momentum Engine Light Fission Core Antimatter Reactor > --- PROPULSION ------- Wheel Wheel Compact Wheel Compact Wheel Compact Wheel > --- UTILITY ---------- High-capacity Storage Unit Advanced Signal Interpreter Damper Plating Tower Shield Tech Extrapolator > --- WEAPON ----------- Powered Cannon Mini Grenade Launcher Great Maul > --- INVENTORY -------- Advanced Myomer Leg Centrium Wheel Large Storage Unit Deep Structural Scanner Advanced Sensor Array Improved Weapon Shielding Improved System Guard Hypervelocity Gauss Rifle Remote Datajack CPS Tube Large Botcube Large Botcube PL-3XN's Ring of Power [Rating: 107] Favorites ----------- Power Light Fission Core Engine Subdweller Power Source Power Core Light Fission Core Reactor Antimatter Reactor Propulsion Compact Wheel Treads Spiked Treads Leg Carbon-fiber Leg Wheel Compact Wheel Hover Unit Gravmag Array Utility Huge Storage Unit Device Sensor Array Storage Huge Storage Unit Processor Tech Extrapolator Hackware Hacking Suite Protection Medium Armor Plating Weapon Subdweller Laser Energy Gun Subdweller Laser Energy Cannon Subdweller Beam Cannon Ballistic Gun Subdweller Machine Gun Ballistic Cannon Light Antimatter Cannon Launcher Mini Grenade Launcher Special Weapon Remote Datajack Impact Weapon Great Maul Build | -11 -10 -10 -9 -9 -6 -6 -6 -6 -6 -6 -6 ------- Run | Yrd Mat Sub Rec Scr Fac Was Fac Ext Cet Arc Hub Slots Evolved 8 | . . . . . 8 . . . . . . Power . | . . . . . . . . . . . . Propulsion 2 | . . . . . 2 . . . . . . Utility 5 | . . . . . 5 . . . . . . Weapon 1 | . . . . . 1 . . . . . . Parts Attached 118 | 7 8 19 6 14 7 3 23 12 2 . 17 Power 21 | 1 1 5 1 2 . 1 2 4 . . 4 Engine 15 | 1 1 5 . 1 . . 1 4 . . 2 Core 3 | . . . 1 1 . . 1 . . . . Reactor 3 | . . . . . . 1 . . . . 2 Propulsion 23 | 2 . 5 . 3 1 . 7 . 2 . 3 Treads 2 | . . 2 . . . . . . . . . Leg 3 | . . . . . . . . . . . 3 Wheel 14 | 2 . 3 . 3 1 . 5 . . . . Hover 4 | . . . . . . . 2 . 2 . . Flight . | . . . . . . . . . . . . Utility 43 | 2 4 3 2 3 6 2 9 5 . . 7 Device 13 | 1 1 . . . 1 . 6 2 . . 2 Storage 6 | 1 1 1 . 1 1 . . 1 . . . Processor 6 | . . . . . 2 1 2 1 . . . Hackware 3 | . . . . . 2 . . . . . 1 Protection 15 | . 2 2 2 2 . 1 1 1 . . 4 Artifact . | . . . . . . . . . . . . Weapon 31 | 2 3 6 3 6 . . 5 3 . . 3 Energy Gun 9 | . . 3 2 3 . . . . . . 1 Energy Cannon 3 | . . 1 . 1 . . 1 . . . . Ballistic Gun 9 | 2 1 2 1 . . . . 1 . . 2 Ballistic Cannon 5 | . 1 . . . . . 3 1 . . . Launcher 2 | . 1 . . 1 . . . . . . . Special Weapon 2 | . . . . . . . 1 1 . . . Impact Weapon 1 | . . . . 1 . . . . . . . Slashing Weapon . | . . . . . . . . . . . . Piercing Weapon . | . . . . . . . . . . . . Special Melee Weapon . | . . . . . . . . . . . . Unidentified Prototypes 7 | . . . . . . . 5 . . . 2 Parts Lost 41 | . 1 6 . . . . 9 3 4 . 18 Power 6 | . . 1 . . . . 1 . . . 4 Propulsion 10 | . . 2 . . . . 3 . 1 . 4 Utility 15 | . 1 1 . . . . 3 2 1 . 7 Weapon 10 | . . 2 . . . . 2 1 2 . 3 Highest Loss Streak 7 | . 1 3 . . . . 4 1 2 . 7 To Critical Strikes 3 | . . 1 . . . . . 1 1 . . Average Backups 13 | . 8 20 20 12 4 9 12 6 6 4 7 Power 1 | . 1 3 3 1 . . . . . 1 1 Propulsion 2 | . . 4 4 . . 1 4 1 . . . Utility 5 | . 4 6 7 6 2 4 4 2 3 3 4 Weapon 3 | . 2 5 5 2 1 1 1 2 1 . . Tool/Special . | . . . . . . . . . . . . Unused Backups 68 | . 3 3 2 20 . . 20 5 13 . 2 Power 8 | . . . . 4 . . 2 . 2 . . Propulsion 11 | . . . . 4 . . 5 . 2 . . Utility 28 | . . . . 10 . . 9 1 6 . 2 Weapon 19 | . 3 3 2 . . . 4 4 3 . . Tool/Special 2 | . . . . 2 . . . . . . . Average Slot Usage (%) 87 | . 100 98 99 73 75 71 87 84 85 85 74 Engine 6 | . 14 13 . 1 4 1 . 6 6 6 3 Core 4 | . . . 13 10 4 4 . . . . . Treads 5 | . . 18 . . . . . . . . . Wheel 16 | . 28 9 28 23 20 21 23 . . . . Hover 2 | . . . . . . . . 12 19 20 11 Device 7 | . 12 11 . . 3 1 12 17 9 13 10 Storage 10 | . 14 14 14 8 4 4 5 4 6 6 6 Processor 5 | . . . . . 7 8 20 20 26 26 21 Protection 6 | . 1 2 13 11 8 8 4 2 . . 3 Energy Gun 8 | . . 13 13 12 . . . . . . . Energy Cannon 3 | . . 10 . 1 4 4 5 . . . . Ballistic Gun 4 | . 18 3 14 . . . . 1 . . 3 Ballistic Cannon 2 | . 9 . . . . . 1 17 11 6 3 Peak Build Rating 107 | 7 10 19 23 66 87 107 103 92 80 69 85 Average Rating 37 | 4 8 15 22 35 85 97 70 85 72 68 61 On Entrance 50 | . 7 10 17 23 66 87 96 92 78 69 66 Avg Prop Armor Cover (%) 3 | . . . . 3 . . . . . . 3 Naked Turns 3 | . . . . . . . . . . . 3 Heaviest Build 169 | 13 31 100 101 103 111 169 121 41 40 23 50 Greatest Support 68 | 32 32 40 30 52 68 68 68 40 42 42 45 Greatest Overweight (x) 10 | . . 4 3 10 1 2 2 1 . . 2 Average Overweight (x) 1 | . . 2 2 2 1 1 . . . . . Largest Inventory Capacity 25 | 8 15 25 25 25 20 20 20 10 10 10 10 Average Capacity 18 | 6 14 24 25 17 19 20 19 8 10 10 9 Most Carried 25 | 1 14 25 25 25 13 20 20 10 10 5 10 Average Carried 15 | . 8 21 23 14 9 14 17 8 7 4 8 Final Capacity 25 | 8 15 25 25 15 20 20 5 10 10 10 5 Final Carried 25 | 1 14 25 22 14 10 19 5 10 4 5 3 Class Distribution -------------------- 32% | Commander-Mutant 31% | Mutant 19% | Scavenger-Mutant 6% | Skirmisher 3% | Scavenger-Skirmisher 3% | Commander-Skirmisher Dominant Class ---------------- Mutant | -10/Materials Mutant | -10/Subcaves Scavenger-Mutant | -9/Recycling Commander-Mutant | -9/Scraptown Scavenger-Skirmisher | -6/Factory Scavenger-Tank | -6/Waste Skirmisher | -6/Factory Commander-Skirmisher | -6/Extension Scavenger-Mutant | -6/Cetus Scavenger-Mutant | -6/Archives Scavenger-Mutant | -6/Hub_04(d) Resources | -11 -10 -10 -9 -9 -6 -6 -6 -6 -6 -6 -6 ----------- Run | Yrd Mat Sub Rec Scr Fac Was Fac Ext Cet Arc Hub Matter Collected 5051 | 255 462 693 93 210 . 109 606 1763 414 . 446 Remotely . | . . . . . . . . . . . . Salvage Created 5468 | 49 529 666 245 196 176 566 1209 898 399 . 535 Parts 229 | 3 29 39 15 10 7 5 67 17 16 . 21 Haulers Intercepted 5 | . 2 . . . . . 2 1 . . . Recyclers Shooed 4 | . 2 . 1 . . . . 1 . . . Parts Field Recycled . | . . . . . . . . . . . . Retrieved Matter . | . . . . . . . . . . . . Parts Self-Destructed 18 | . . 18 . . . . . . . . . Prevented . | . . . . . . . . . . . . Parts Restored . | . . . . . . . . . . . . Kills | -11 -10 -10 -9 -9 -6 -6 -6 -6 -6 -6 -6 ------- Run | Yrd Mat Sub Rec Scr Fac Was Fac Ext Cet Arc Hub Combat Hostiles Destroyed 93 | . 8 18 4 4 3 2 17 19 8 . 10 Guns 21 | . 2 7 4 . . . . 2 . . 6 Cannons 61 | . 6 8 . . 3 . 15 17 8 . 4 AOE 7 | . . 1 . 4 . . 2 . . . . Classes Destroyed 22 | 1 6 3 4 2 . 1 2 2 . . 1 Worker 2 | . 1 . . . . . . . . . 1 Builder 3 | . 1 . . . . . 2 . . . . Tunneler 2 | 2 . . . . . . . . . . . Hauler 5 | . 2 . . . . . 2 1 . . . Recycler 4 | . . . 1 . . . 1 2 . . . Operator 5 | . 3 . . . . . 2 . . . . Turret 2 | . . 2 . . . . . . . . . Watcher 7 | . 2 . . . . . . 1 2 . 2 Swarmer 6 | . . 3 . . . . 3 . . . . Grunt 32 | . 8 2 . . 3 . 3 13 . . 3 Brawler 1 | . . . . . . . . . . . 1 Duelist 3 | . . . . . . . . 2 . . 1 Protector 3 | . . . 2 . . . 1 . . . . Sentry 9 | . . . 1 . . . 1 3 . . 4 Specialist 1 | . . . . . . . 1 . . . . Hunter 4 | . . . . . . . 4 . . . . Programmer 6 | . . . 1 . . . 4 . . . 1 Behemoth 1 | . . . . . . . . 1 . . . Compactor 2 | . . . . . . 2 . . . . . Cetus Guard 8 | . . . . . . . . . 8 . . Subdweller 13 | . . 13 . . . . . . . . . Ranger 2 | . . . . 2 . . . . . . . Scrapper 2 | . . . . 2 . . . . . . . Butcher 1 | . . . . . . . . 1 . . . Guerrilla 1 | . . . . . . . . 1 . . . Best Kill Streak 9 | 2 4 3 2 4 3 2 5 9 5 . 3 Combat Bots Only 7 | . 2 2 2 4 3 2 5 7 4 . 2 Max Kills in Single Turn 3 | 1 1 1 1 2 1 1 3 1 1 . 2 Gunslinging . | . . . . . . . . . . . . Exploded 2 | . . 1 . 2 . . 1 . . . . Melee . | . . . . . . . . . . . . Uniques/NPCs Destroyed . | . . . . . . . . . . . . Combat | -11 -10 -10 -9 -9 -6 -6 -6 -6 -6 -6 -6 -------- Run | Yrd Mat Sub Rec Scr Fac Was Fac Ext Cet Arc Hub Hostile Shots Fired 657 | . 30 92 4 20 6 2 111 132 35 . 225 Missed 224 | . 10 34 . 6 2 . 31 56 15 . 70 Hits 433 | . 20 58 4 14 4 2 80 76 20 . 155 Melee 16 | . . . . . . 2 . 5 . . 9 Projectile 417 | . 20 58 4 14 4 . 80 71 20 . 146 AOE 1 | . . 1 . . . . . . . . . Critical Strikes 16 | . . 2 1 1 . 1 2 6 1 . 2 Part Disruptions 1 | . . . . . . . 1 . . . . Damage Taken 6673 | . 246 990 62 168 76 84 1331 935 525 . 2256 Core 1079 | . 33 147 16 . . . 225 190 52 . 416 Absorbed by Shields 131 | . . . . . . . . 131 . . . Redirected to Shielding 62 | . . . . 8 11 . 43 . . . . Ignored by Resistances 110 | . . . . . . . 18 92 . . . Regen/Repaired (Parts) 118 | . . . . . . . . 118 . . . Core Remaining (%) 60 | 100 . . . 21 . . . . . . . Volleys Fired 420 | 3 46 77 10 4 14 26 63 81 43 1 52 Largest 3 | 2 2 2 2 1 1 1 3 3 3 1 2 Hottest 153 | 40 53 140 105 120 40 120 153 153 150 . 70 Shots Fired 686 | 6 89 130 16 4 14 26 75 204 49 2 71 Gun 214 | 6 57 72 16 . . . . 15 . . 48 Cannon 444 | . 30 49 . 1 14 25 63 189 49 1 23 Launcher 19 | . 2 9 . 3 . 1 4 . . . . Special 9 | . . . . . . . 8 . . 1 . Kinetic 463 | 6 87 35 10 . . . 13 204 49 1 58 Thermal 195 | . . 86 6 1 14 25 50 . . . 13 Explosive 19 | . 2 9 . 3 . 1 4 . . . . Electromagnetic . | . . . . . . . . . . . . Robot Hit Streak 20 | 2 8 20 8 2 3 11 6 13 12 1 9 Robot Miss Streak 6 | 2 6 3 2 1 3 1 5 4 3 1 4 Penetration Max 1 | . . . . . . . . 1 1 . 1 Secondary Targets 1 | . 1 . . . . . . . . . . Max Gunslinging Chain 1 | . 1 . . . . . . . . . . Shots Hit Robots 390 | 3 56 62 11 2 7 20 35 114 32 1 47 Core Hits 197 | 2 25 31 6 5 3 1 24 57 18 . 25 Critical Kills 13 | . . 3 . . . 2 2 . 6 . . Critical Parts Destroyed 10 | . . . . . . . . . 4 . 6 Critical Strikes 38 | . . 4 . . . 2 2 7 15 . 8 Meltdown 6 | . . 2 . . . 2 2 . . . . Destroy 21 | . . 2 . . . . . . 13 . 6 Blast 11 | . . . . . . . . 7 2 . 2 Melee Attacks 4 | . . . . 4 . . . . . . . Impact 4 | . . . . 4 . . . . . . . Slashing . | . . . . . . . . . . . . Piercing . | . . . . . . . . . . . . Sneak Attacks . | . . . . . . . . . . . . Combat Hostiles . | . . . . . . . . . . . . Follow-up Attacks . | . . . . . . . . . . . . Damage Inflicted 14897 | 40 821 1450 230 381 437 1146 2917 4708 952 . 1815 Guns 2663 | 40 438 707 230 . . . . 245 . . 1003 Cannons 10373 | . 383 525 . . 437 1084 1933 4463 952 . 596 Explosions 1854 | . . 218 . 381 . 62 984 . . . 209 Melee . | . . . . . . . . . . . . Ramming 7 | . . . . . . . . . . . 7 Kinetic 8718 | 40 821 428 129 . . . 235 4708 952 . 1405 Thermal 4961 | . . 804 101 . 437 1084 2341 . . . 194 Explosive 1002 | . . 218 . 381 . 62 341 . . . . Electromagnetic 209 | . . . . . . . . . . . 209 Impact . | . . . . . . . . . . . . Slashing . | . . . . . . . . . . . . Piercing . | . . . . . . . . . . . . Highest Corruption 28 | . 1 1 1 . . 20 20 17 17 17 28 Average Corruption 6 | . 1 1 1 . . 10 13 16 17 17 17 Corruption Purged 5 | . . . . . . . 5 . . . . Corruption Blocked . | . . . . . . . . . . . . Effects 217 | . 5 25 13 . . 12 56 61 20 4 21 Message Errors 48 | . 2 7 1 . . 2 16 10 6 2 2 Matter Fused 47 | . . 7 2 . . 3 12 14 3 . 6 Heat Flow Errors 31 | . 1 3 3 . . 2 9 8 3 . 2 Energy Discharges 27 | . 1 4 5 . . 2 5 5 1 1 3 Parts Rejected 6 | . . . . . . . . 4 1 . 1 Parts Fused 1 | . . . . . . . . 1 . . . Data Loss (minor) 20 | . 1 4 1 . . . 8 4 1 . 1 Data Loss (major) 9 | . . . 1 . . 1 2 2 2 . 1 Misfires 11 | . . . . . . . 4 4 . 1 2 Alerts 2 | . . . . . . 2 . . . . . Misdirections 5 | . . . . . . . . 1 1 . 3 Weapon Failures 10 | . . . . . . . . 8 2 . . Overload Shots 9 | . . . . 1 . 5 3 . . . . Effects 2 | . . . . . . 1 1 . . . . Energy Bleed 1 | . . . . . . 1 . . . . . Heat Surge 1 | . . . . . . . 1 . . . . Overflow Damage 417 | . . 1 . 16 . . 305 63 . . 32 Projectiles 198 | . . . . . . . 133 63 . . 2 Explosions 219 | . . 1 . 16 . . 172 . . . 30 Melee . | . . . . . . . . . . . . Knockbacks 45 | . 4 3 . . . . 2 32 . . 4 Impact . | . . . . . . . . . . . . Kinetic 40 | . 3 3 . . . . 1 30 . . 3 Secondary 5 | . 1 . . . . . 1 2 . . 1 Self-Inflicted Damage 396 | . . 31 . 50 . . 206 . . . 109 Shots 9 | . . 2 . 3 . . 3 . . . 1 Rammed . | . . . . . . . . . . . . Targets Rammed 3 | . . . . . . . . . . . 3 Kicked 3 | . . . . . . . . . . . 3 Crushed . | . . . . . . . . . . . . Highest Temperature 326 | . 219 216 262 110 52 326 248 247 197 . 156 Average Temperature 69 | . 33 36 69 46 23 137 71 61 62 . 60 Received Heat Transfer 1368 | . 126 198 27 85 36 . 90 284 . . 522 Effects 3 | . . . . . . 3 . . . . . Interference 3 | . . . . . . 3 . . . . . Siege Activations . | . . . . . . . . . . . . Martial Activations . | . . . . . . . . . . . . Shielding Activations . | . . . . . . . . . . . . Robots Disrupted . | . . . . . . . . . . . . Combat Hostiles . | . . . . . . . . . . . . Robots Corrupted . | . . . . . . . . . . . . Combat Hostiles . | . . . . . . . . . . . . Parts Fried . | . . . . . . . . . . . . Impact Corruptions . | . . . . . . . . . . . . Robots Melted 6 | . . 2 . . . 2 2 . . . . Combat Hostiles 4 | . . 2 . . . 2 . . . . . Parts Melted 12 | . . 8 . . . 1 3 . . . . Heat Transferred 2027 | . . 1031 137 . . . 489 . . . 370 Parts Sabotaged . | . . . . . . . . . . . . Parts Stolen . | . . . . . . . . . . . . Parts Stripped . | . . . . . . . . . . . . Power Chain Reactions . | . . . . . . . . . . . . Alert | -11 -10 -10 -9 -9 -6 -6 -6 -6 -6 -6 -6 ------- Run | Yrd Mat Sub Rec Scr Fac Was Fac Ext Cet Arc Hub Maximum Alert Level 3 | . . . . . . . 2 3 2 . 2 Low Security (%) 67 | 100 100 . 100 . 100 100 89 . . 100 38 Level 1 8 | . . . . . . . 5 22 . . 37 Level 2 17 | . . . . . . . 4 43 100 . 24 Level 3 6 | . . . . . . . . 33 . . . Level 4 . | . . . . . . . . . . . . Level 5 . | . . . . . . . . . . . . High Security . | . . . . . . . . . . . . Max Security . | . . . . . . . . . . . . Peak Influence 980 | 10 89 . 50 . 70 18 527 980 588 195 570 Initial 542 | . 6 . . . . 18 . 257 542 195 58 Average 193 | 1 25 . 8 . 28 2 66 588 547 180 290 Influence Increases 4473 | 10 297 210 261 . 75 10 979 1520 176 1 934 Destroy 0b10 Robot/C 2220 | . 160 140 80 . 60 . 400 820 160 . 400 Destroy 0b10 Robot/NC 185 | 10 45 . 15 . . . 50 30 10 . 25 Destroy Leader 392 | . 48 10 . . 10 . 114 96 . . 114 Allied During Kill 459 | . . . 21 . . . 40 366 . . 32 Successful Hack 184 | . 20 . 23 . . . 52 46 . . 43 Select Force Hacks 120 | . . . 120 . . . . . . . . Disable Machine 300 | . 15 . . . . . 105 30 . . 150 Destroy Structure 283 | . 9 . 2 . 5 10 68 72 6 1 110 Lose Combat Pursuer 330 | . . 60 . . . . 150 60 . . 60 Influence Decreases 3927 | . 284 233 261 . 23 62 452 1078 657 323 554 Entered New Map 1148 | . 4 12 . . . 34 . 270 427 293 108 Time Decay 2069 | . 270 211 261 . 23 28 352 458 190 30 246 Lost Part 350 | . 10 10 . . . . 80 30 40 . 180 Lost Ally 360 | . . . . . . . 20 320 . . 20 Squads Dispatched 23 | . 3 . . . 1 . 7 6 . . 6 Investigation 5 | . 1 . . . . . 1 2 . . 1 Extermination 4 | . . . . . . . 3 . . . 1 Reinforcement 9 | . 2 . . . . . 3 3 . . 1 Assault 1 | . . . . . . . . 1 . . . Garrison 4 | . . . . . 1 . . . . . 3 Intercept . | . . . . . . . . . . . . Searches Triggered . | . . . . . . . . . . . . Construction Impeded 2 | . . . . . . . . 2 . . . Haulers Reinforced . | . . . . . . . . . . . . Active Scanning Responses . | . . . . . . . . . . . . Cargo Convoy Interrupts 1 | . . . . . . . 1 . . . . Stealth | -11 -10 -10 -9 -9 -6 -6 -6 -6 -6 -6 -6 --------- Run | Yrd Mat Sub Rec Scr Fac Was Fac Ext Cet Arc Hub Distress Signals 8 | . 3 . . 1 . . . 3 1 . . Communications Jammed . | . . . . . . . . . . . . Distress Signals . | . . . . . . . . . . . . Times Spotted 193 | . 12 30 3 17 3 6 39 49 9 . 25 Peak Tracking Total 13 | . 3 5 1 6 2 4 13 6 5 . 6 Tactical Retreats 9 | . . 2 . . . . 4 2 . . 1 Traps | -11 -10 -10 -9 -9 -6 -6 -6 -6 -6 -6 -6 ------- Run | Yrd Mat Sub Rec Scr Fac Was Fac Ext Cet Arc Hub Traps Triggered 6 | . 1 1 . . 1 . . 2 . . 1 Indirectly 1 | . . . . . . . . . . . 1 Trap Hack Attempts . | . . . . . . . . . . . . Triggered . | . . . . . . . . . . . . Disarmed . | . . . . . . . . . . . . Reprogrammed . | . . . . . . . . . . . . Reused . | . . . . . . . . . . . . Traps Extracted . | . . . . . . . . . . . . Installed 1 | . . 1 . . . . . . . . . Triggered . | . . . . . . . . . . . . Most Traps Carried 2 | . . 1 . 2 . . . . . . . Machines | -11 -10 -10 -9 -9 -6 -6 -6 -6 -6 -6 -6 ---------- Run | Yrd Mat Sub Rec Scr Fac Was Fac Ext Cet Arc Hub Machines Disabled 33 | . 1 3 . 7 . . 7 5 . . 10 Max in Single Turn 4 | . 1 2 . 1 . . 4 1 . . 3 Garrison Access 1 | . . . . . . . 1 . . . . Network Hub 1 | . . . . . . . . . . . 1 Machines Repaired . | . . . . . . . . . . . . Machines Dismantled . | . . . . . . . . . . . . Machines Sabotaged . | . . . . . . . . . . . . Overloaded Fab Kills . | . . . . . . . . . . . . Hacking | -11 -10 -10 -9 -9 -6 -6 -6 -6 -6 -6 -6 --------- Run | Yrd Mat Sub Rec Scr Fac Was Fac Ext Cet Arc Hub Machines Accessed 46 | . 8 1 10 3 . . 8 10 . . 6 Terminals 30 | . 6 . 6 . . . 4 9 . . 5 Fabricators . | . . . . . . . . . . . . Repair Stations 3 | . 1 . . . . . 1 1 . . . Recycling Units 6 | . 1 . 4 . . . 1 . . . . Scanalyzers 1 | . . . . . . . 1 . . . . Garrison Access 2 | . . . . . . . 1 . . . 1 Total Hacks 123 | . 20 1 27 24 . . 19 22 . . 10 Successful 78 | . 10 1 17 24 . . 12 12 . . 2 Failed 45 | . 10 . 10 . . . 7 10 . . 8 Catastrophic 9 | . . . 1 . . . 2 3 . . 3 Database Lockouts . | . . . . . . . . . . . . Manual 46 | . 14 . 20 . . . 4 5 . . 3 Terminals 66 | . 15 . 16 . . . 10 18 . . 7 Fabricators . | . . . . . . . . . . . . Repair Stations 10 | . 4 . . . . . 2 4 . . . Recycling Units 14 | . 1 . 11 . . . 2 . . . . Scanalyzers 4 | . . . . . . . 4 . . . . Garrison Access 4 | . . . . . . . 1 . . . 3 Terminal Hacks 39 | . 1 1 . 24 . . 4 8 . . 1 Record 24 | . . . . 23 . . 1 . . . . Part Schematic 1 | . . . . . . . 1 . . . . Prototype ID Bank 1 | . . . . . . . 1 . . . . Open Door 4 | . . . . . . . . 4 . . . Branch Access Points 1 | . . . . . . . 1 . . . . Terminal Index 1 | . . . . . . . . 1 . . . Locate Traps 2 | . 1 . . . . . . 1 . . . Hauler Manifests 1 | . . . . . . . . 1 . . . Registered Components 1 | . . . . . . . . 1 . . . Zone Layout 1 | . . . . . . . . . . . 1 Proto ID Catalog 2 | . . 1 . 1 . . . . . . . Fabricator Hacks . | . . . . . . . . . . . . Repair Station Hacks 5 | . 2 . . . . . 1 2 . . . Scan Component 2 | . . . . . . . 1 1 . . . Repair 1 | . . . . . . . . 1 . . . Refit 2 | . 2 . . . . . . . . . . Recycling Unit Hacks 4 | . 1 . 3 . . . . . . . . Retrieve Components 4 | . 1 . 3 . . . . . . . . Scanalyzer 4 | . . . . . . . 4 . . . . Insert Component 2 | . . . . . . . 2 . . . . Analyze 2 | . . . . . . . 2 . . . . Garrison Access Hacks 1 | . . . . . . . 1 . . . . Seal Access 1 | . . . . . . . 1 . . . . Unauthorized Hacks 25 | . 6 . 14 . . . 2 2 . . 1 Terminals 20 | . 6 . 10 . . . 1 2 . . 1 Botnet 10 | . 1 . 5 . . . 1 2 . . 1 Operators 1 | . 1 . . . . . . . . . . Skim 9 | . 4 . 5 . . . . . . . . Fabricators . | . . . . . . . . . . . . Repair Stations . | . . . . . . . . . . . . Recycling Units 5 | . . . 4 . . . 1 . . . . Mask 1 | . . . . . . . 1 . . . . Tunnel 4 | . . . 4 . . . . . . . . Scanalyzers . | . . . . . . . . . . . . Garrison Access . | . . . . . . . . . . . . Data Cores Recovered 1 | . 1 . . . . . . . . . . Used 1 | . 1 . . . . . . . . . . Hacking Detections 36 | . 7 . 8 . . . 7 8 . . 6 Full Trace Events 4 | . 1 . . . . . 1 1 . . 1 Feedback Events . | . . . . . . . . . . . . Feedback Blocked . | . . . . . . . . . . . . Robot Schematics Acquired . | . . . . . . . . . . . . Robots Built . | . . . . . . . . . . . . Authchips . | . . . . . . . . . . . . Time . | . . . . . . . . . . . . Total Robot Build Rating . | . . . . . . . . . . . . Part Schematics Acquired 28 | . . . . . 1 . 11 9 5 1 1 Parts Built . | . . . . . . . . . . . . Authchips . | . . . . . . . . . . . . Time . | . . . . . . . . . . . . Total Part Build Rating . | . . . . . . . . . . . . Part Studies Acquired . | . . . . . . . . . . . . Parts Repaired 1 | . . . . . . . . 1 . . . Time 50 | . . . . . . . . 50 . . . Parts Recycled . | . . . . . . . . . . . . Recycled Matter . | . . . . . . . . . . . . Retrieved Matter . | . . . . . . . . . . . . Retrieved Components 16 | . 2 . 14 . . . . . . . . Parts Scanalyzed 2 | . . . . . . . 2 . . . . Part Schematics Acquired 2 | . . . . . . . 2 . . . . Parts Damaged . | . . . . . . . . . . . . Bothacking | -11 -10 -10 -9 -9 -6 -6 -6 -6 -6 -6 -6 ------------ Run | Yrd Mat Sub Rec Scr Fac Was Fac Ext Cet Arc Hub Used RIF Installer . | . . . . . . . . . . . . Robots Hacked 1 | . . . . . . . 1 . . . . Non-combat 1 | . . . . . . . 1 . . . . Combat . | . . . . . . . . . . . . Robot Hacks Applied 2 | . . . . . . . 2 . . . . parse_system 1 | . . . . . . . 1 . . . . check_alert 1 | . . . . . . . 1 . . . . Manual 1 | . . . . . . . 1 . . . . Relay Couplers Released . | . . . . . . . . . . . . Fabnet Peak Effective % . | . . . . . . . . . . . . Robots Rewired 29 | . . . 11 . . . . 18 . . . Allies Hacked 1 | . . . . . . . 1 . . . . Hacks Repelled . | . . . . . . . . . . . . Allies | -11 -10 -10 -9 -9 -6 -6 -6 -6 -6 -6 -6 -------- Run | Yrd Mat Sub Rec Scr Fac Was Fac Ext Cet Arc Hub Total Allies 40 | . . . 11 1 . 1 2 24 1 . . Largest Group 13 | . . . 10 10 . 1 1 13 1 1 1 Highest-Rated Group 484 | . . . 189 189 . 31 101 484 156 156 156 Highest-Rated Ally 159 | . . . 27 62 . 31 101 159 156 156 156 Total Orders 3 | . . . . 1 . . . . . 2 . STAY 1 | . . . . 1 . . . . . . . FOLLOW 1 | . . . . . . . . . . 1 . GUARD 1 | . . . . . . . . . . 1 . Ally Attacks 211 | . . . 5 50 . 10 21 105 . . 20 Total Damage 5984 | . . . 172 881 . 147 925 2497 . . 1362 Kills 57 | . . . 3 11 . . 6 25 . . 12 Allies Corrupted 3 | . . . . . . . . 3 . . . Allies Melted 3 | . . . . 2 . . . . . . 1 Intel | -11 -10 -10 -9 -9 -6 -6 -6 -6 -6 -6 -6 ------- Run | Yrd Mat Sub Rec Scr Fac Was Fac Ext Cet Arc Hub Active Infowar (turns) 7978 | 1 1005 3250 9 . 77 82 1402 1150 394 76 532 Optics 2268 | . . . . . . . 116 1150 394 76 532 Sensors 6667 | . 362 3250 9 . 77 82 1352 954 208 76 297 Structural 1078 | . . . . . . . 399 679 . . . Seismic 644 | 1 643 . . . . . . . . . . Robot Analysis Total . | . . . . . . . . . . . . Derelict Logs Recovered 5 | . . . . 5 . . . . . . . Drone Launches . | . . . . . . . . . . . . Drone Recoveries . | . . . . . . . . . . . . Exploration | -11 -10 -10 -9 -9 -6 -6 -6 -6 -6 -6 -6 ------------- Run | Yrd Mat Sub Rec Scr Fac Was Fac Ext Cet Arc Hub Turns Passed 14595 | 56 1092 4029 1171 4361 80 220 1431 1150 394 76 535 Spaces Moved 9349 | 34 798 1610 731 3314 43 136 1162 743 366 42 370 Core 3 | 1 . . . . . . . . . . 2 Treads 690 | . . 690 . . . . . . . . . Legs 63 | . . . . . . . . . . . 63 Wheels 7036 | 33 798 920 731 3314 43 136 1061 . . . . Hover 1557 | . . . . . . . 101 743 366 42 305 Flight . | . . . . . . . . . . . . Fastest Speed 50 | 50 100 100 119 105 107 107 56 56 56 58 50 Average Speed 126 | 98 100 228 130 120 107 117 100 57 57 58 80 Slowest Speed 560 | 100 100 560 131 230 107 122 120 110 58 58 220 Overloaded Moves . | . . . . . . . . . . . . Propulsion Burnouts . | . . . . . . . . . . . . Robots Hopped . | . . . . . . . . . . . . Potential Cave-ins . | . . . . . . . . . . . . Cave-ins Triggered 1 | . . . . . . . . . . . 1 Exploration Rate (%) 60 | 4 100 65 99 88 2 83 24 87 60 75 42 Regions Visited 11 Branch Regions 7 Pre-discovered Areas 15 | . . 1 7 7 . . . . . . . Known Exits Taken 3 | . . . 1 1 . . 1 . . . . Unknown Exits Taken 6 | 1 1 1 . . . . . 1 1 1 . Scrap Searched 17 | . . 12 . 5 . . . . . . . Spaces Dug 32 | . 17 3 . 2 2 . 6 . . . 2 Terrain Destroyed 395 | . 17 30 2 27 5 13 66 56 6 1 172 Melee 2 | . . . . 2 . . . . . . . Projectile 122 | . . 7 2 . 5 5 18 56 6 1 22 AOE 271 | . 17 23 . 25 . 8 48 . . . 150 Terrain Rammed . | . . . . . . . . . . . . Walls Destroyed . | . . . . . . . . . . . . Machines Disabled . | . . . . . . . . . . . . Actions | -11 -10 -10 -9 -9 -6 -6 -6 -6 -6 -6 -6 --------- Run | Yrd Mat Sub Rec Scr Fac Was Fac Ext Cet Arc Hub Total 11530 | 47 1000 1816 930 3697 66 177 1382 1284 505 92 534 Wait 961 | 3 116 41 80 246 1 . 38 265 58 49 64 Move 9339 | 33 797 1609 730 3313 43 135 1161 742 365 41 370 Hop . | . . . . . . . . . . . . Pick Up 182 | 1 16 26 4 58 1 6 32 11 16 . 11 Fast Attach 65 | 7 2 5 . 7 . 1 19 13 1 . 10 Attach 50 | . 1 8 2 8 6 4 7 1 4 . 9 Detach 16 | . 2 . . . . 3 4 2 . 1 4 Swap 80 | . 13 31 4 3 1 . 8 13 1 . 6 Drop 170 | . 7 18 6 54 . 2 49 12 17 . 5 Fire 420 | 3 46 77 10 4 14 26 63 81 43 1 52 Melee 4 | . . . . 4 . . . . . . . Ram . | . . . . . . . . . . . . Kick 3 | . . . . . . . . . . . 3 Crush . | . . . . . . . . . . . . Escape Stasis 13 | . . . . . . . . 13 . . . Rewire 226 | . . . 94 . . . 1 131 . . . Trap 1 | . . 1 . . . . . . . . . Miscellaneous . | . . . . . . . . . . . . Route ------- -11/Scrapyard -10/Materials (discovered 6 exits: [*Mat x3] / [*Min x2] / *Sub) -10/Subcaves (discovered 3 exits: [*Mat x2] / *Rec) -9/Recycling (discovered 2 exits: *Fac / *Scr) -9/Scraptown (discovered 2 exits: *Fac x2) -6/Factory (discovered 2 exits: Fac / Ext) -6/Waste -6/Factory (discovered 5 exits: *Fac / *Low x2 / *Ext x2) -6/Extension (discovered 2 exits: *Fac / [*Cet]) -6/Cetus (discovered 2 exits: *Fac / [*Arc]) -6/Archives (discovered 2 exits: *Hub x2) -6/Hub_04(d) (discovered 2 exits: *Fac x2) History --------- Turn | Location | Event 13 | -11/Scrapyard | Discovered new exit (range 15) 57 | -11/Scrapyard | Entered Materials 173 | -10/Materials | Discovered new exit (range 15) 227 | -10/Materials | Met 8R-AWN 331 | -10/Materials | Build established: Mutant 403 | -10/Materials | Discovered new exit (range 6) 518 | -10/Materials | Discovered new exit (range 14) 656 | -10/Materials | Discovered new exit (range 16) 782 | -10/Materials | Discovered new exit (range 12) 1088 | -10/Materials | Discovered new exit (range 6) 1149 | -10/Materials | Entered Subcaves 1150 | -10/Subcaves | Approached by a straggling Scientist 1227 | -10/Subcaves | Ambushed by swarm of Subdwellers 1236 | -10/Subcaves | Ambushed by Subdwellers from Twisted Machinery 1257 | -10/Subcaves | Discovered new exit (range 8) 1273 | -10/Subcaves | Lost 3 allies 1325 | -10/Subcaves | Learned location of Zion (-6) 1325 | -10/Subcaves | Met a Zionite searching for "candidates" 1811 | -10/Subcaves | Build established: Scavenger-Mutant 2190 | -10/Subcaves | Build established: Mutant 2461 | -10/Subcaves | Discovered new exit (range 4) 3160 | -10/Subcaves | Discovered new exit (range 13) 3924 | -10/Subcaves | Core integrity fell below 50% 4511 | -10/Subcaves | A Subdweller sparked back to life 4511 | -10/Subcaves | A Subdweller sparked back to life 4560 | -10/Subcaves | Found Prototype Energy Cannon 4575 | -10/Subcaves | Lost 3 parts (2n1w) 4789 | -10/Subcaves | Visited 4L-MR0's lab 4795 | -10/Subcaves | Identified Powered Cannon 4805 | -10/Subcaves | Found Tower Shield 4812 | -10/Subcaves | Build established: Scavenger-Mutant 5178 | -10/Subcaves | Entered Recycling 5179 | -9/Recycling | Met a Zionite searching for Scraptown 5530 | -9/Recycling | Discovered new exit (range 5) 5571 | -9/Recycling | Scanned before Scraplab entrance 6122 | -9/Recycling | Identified exit to Scraptown 6148 | -9/Recycling | Identified exit to Factory 6148 | -9/Recycling | Build established: Commander-Mutant 6171 | -9/Recycling | Learned Storage terminal intel 6193 | -9/Recycling | Learned Storage emergency access door positions 6219 | -9/Recycling | Learned Materials stockpile data 6291 | -9/Recycling | Entered Scraplab 6349 | -9/Recycling | Entered Scraptown 6349 | -9/Scraptown | Accompanied by 10 allies 6349 | -9/Scraptown | System corruption cleaned by C-Scrubber 6584 | -9/Scraptown | Scanned Subdweller tech in exchange for log data 6587 | -9/Scraptown | Learned location of Armory (-4) 6588 | -9/Scraptown | Learned 8 Factory zone layouts 6589 | -9/Scraptown | Learned location of 1 exit from Research 6590 | -9/Scraptown | Learned location of Quarantine (-2) 6592 | -9/Scraptown | Learned location of 1 exit from Lower Caves 6622 | -9/Scraptown | Discovered new exit (range 13) 6673 | -9/Scraptown | Visited Junk Repository 6731 | -9/Scraptown | Visited UFD Registry 6731 | -9/Scraptown | Registered with UFD as "Hardplate" 6745 | -9/Scraptown | Visited The Evicted 6810 | -9/Scraptown | Visited Cave Peace 6823 | -9/Scraptown | Visited Bundlers 6917 | -9/Scraptown | Visited Fellowship of the Rings 7334 | -9/Scraptown | Visited Comm Corps 7369 | -9/Scraptown | Visited Spacefarers 7435 | -9/Scraptown | Visited Scrap Suit Storage 7473 | -9/Scraptown | Visited Curators Association 7558 | -9/Scraptown | Delivered Scrap Shield to a Scientist 7618 | -9/Scraptown | Visited Observation Area 7635 | -9/Scraptown | Visited Research Penetration Think Tank 7663 | -9/Scraptown | Visited Abandonware Association 7677 | -9/Scraptown | Learned abandonware demo "MELTYB.EXE" 7677 | -9/Scraptown | Learned abandonware demo "HACKBUD.EXE" 7703 | -9/Scraptown | Visited Cartography Club 7729 | -9/Scraptown | Visited Supply Room 7761 | -9/Scraptown | Visited Botcube Research 7785 | -9/Scraptown | Visited Science Guys 8300 | -9/Scraptown | Found Botcube 8369 | -9/Scraptown | Found Unknown Device 8441 | -9/Scraptown | Attached Tower Shield, gained temporary slots: Power, Propulsion x2, Utility x2, Weapon x2 8681 | -9/Scraptown | Learned location of Warlord (-4) 8681 | -9/Scraptown | Learned 16 Research zone layouts 8681 | -9/Scraptown | Learned 4 Access zone layouts 8681 | -9/Scraptown | Learned 4 Storage zone layouts 8681 | -9/Scraptown | Learned 16 Upper Caves zone layouts 8681 | -9/Scraptown | Learned 20 Upper Caves zone layouts 8681 | -9/Scraptown | Learned 8 Proximity Caves zone layouts 8681 | -9/Scraptown | Learned 16 Proximity Caves zone layouts 8681 | -9/Scraptown | Learned location of 1 exit from Factory 8681 | -9/Scraptown | Learned location of 2 exits from Research 8681 | -9/Scraptown | Learned location of 1 exit from Proximity Caves 8681 | -9/Scraptown | Identified exit to Factory 8725 | -9/Scraptown | Found Deep Structural Scanner 9522 | -9/Scraptown | Attached Powered Cannon, gained temporary slot: Power 10135 | -9/Scraptown | Met Optimus 10135 | -9/Scraptown | Accepted into 0bPrime 10516 | -9/Scraptown | Civil war broke out across Scraptown 10535 | -9/Scraptown | Found PL-3XN's Ring of Power 10579 | -9/Scraptown | Botcube activated 10599 | -9/Scraptown | Botcube completed mutation into legged form, armed with 2 guns. 10639 | -9/Scraptown | Found Lrg. Botcube 10643 | -9/Scraptown | Found Lrg. Botcube 10710 | -9/Scraptown | Entered Factory 10710 | -6/Factory | Evolved 8 slots: Propulsion x2, Utility x5, Weapon x1 10711 | -6/Factory | Identified exit to Extension 10712 | -6/Factory | Identified exit to Factory 10726 | -6/Factory | Lost 5 allies 10738 | -6/Factory | Garrison activated, responded to threat 10785 | -6/Factory | Tech Extrapolator generated special schematic: Deep Structural Scanner 10790 | -6/Factory | Sucked down chute 10790 | -6/Factory | Entered Waste 10791 | -6/Waste | Met a frightened Derelict 10805 | -6/Waste | EMP discharged 10805 | -6/Waste | System corruption reached 10% 10814 | -6/Waste | Spotted C-40 Crusher 10819 | -6/Waste | Spotted C-40 Crusher 10823 | -6/Waste | Destroyed C-40 Crusher 10843 | -6/Waste | Destroyed C-40 Crusher 10845 | -6/Waste | Spotted C-40 Crusher 10851 | -6/Waste | Found Damper Plating 10860 | -6/Waste | Spotted C-40 Crusher 10892 | -6/Waste | Crushed by Compactor (0 parts destroyed, 1 dropped) 10905 | -6/Waste | EMP discharged 10911 | -6/Waste | Spotted C-40 Crusher 10936 | -6/Waste | Spotted C-40 Crusher 10987 | -6/Waste | Discovered new exit (range 12) 11003 | -6/Waste | Identified exit to Factory 11005 | -6/Waste | EMP discharged 11006 | -6/Waste | Found Broken Quantum Capacitor 11010 | -6/Waste | Entered Factory 11214 | -6/Factory | Tech Extrapolator generated special schematic: Machine Rigger 11423 | -6/Factory | Build established: Mutant 11432 | -6/Factory | P-60 Hacker assimilated allied Administrator 5a 11618 | -6/Factory | Discovered exit to Factory (range 16) 11830 | -6/Factory | Lrg. Botcube activated 11977 | -6/Factory | Build established: Skirmisher 12269 | -6/Factory | Lost 3 parts (2n1w) 12287 | -6/Factory | Cargo convoy interrupted 12350 | -6/Factory | Lost 4 parts (1p2u1w) 12365 | -6/Factory | Found Prototype Device 12365 | -6/Factory | Identified Exp. Thermal Shield 12390 | -6/Factory | Identified exit to Lower Caves 12441 | -6/Factory | Entered Extension 12585 | -6/Extension | Rescued A7 12678 | -6/Extension | Rescued a captive Derelict 12678 | -6/Extension | Rescued a captive Derelict 12764 | -6/Extension | Rescued a captive Derelict 12765 | -6/Extension | Rescued a captive Derelict 12817 | -6/Extension | Lost 5 allies 12973 | -6/Extension | Build established: Commander-Skirmisher 13115 | -6/Extension | Spotted B-75 Beast 13125 | -6/Extension | Destroyed B-75 Beast 13132 | -6/Extension | Spotted B-75 Beast 13158 | -6/Extension | Allies destroyed B-75 Beast 13187 | -6/Extension | Extracted ID and sensor layout for unrecognized location from A7's data core 13240 | -6/Extension | Destroyed 7 combat bots 13264 | -6/Extension | Lost 11 allies 13274 | -6/Extension | Rescued a captive Derelict 13450 | -6/Extension | Tech Extrapolator generated special schematic: Energy Deflector 13468 | -6/Extension | Repaired Gravmag Array 13491 | -6/Extension | First assault squad dispatched 13576 | -6/Extension | Lost 6 allies 13584 | -6/Extension | Discovered exit to Factory (range 10) 13585 | -6/Extension | Discovered new exit (range 6) 13591 | -6/Extension | Entered Cetus 13608 | -6/Cetus | Spotted Cetus Guard 13608 | -6/Cetus | Spotted Cetus Guard 13612 | -6/Cetus | Spotted Cetus Guard 13612 | -6/Cetus | Spotted Cetus Guard 13632 | -6/Cetus | Destroyed Cetus Guard 13635 | -6/Cetus | Core integrity fell below 50% 13635 | -6/Cetus | Destroyed Cetus Guard 13637 | -6/Cetus | Destroyed Cetus Guard 13653 | -6/Cetus | Destroyed Cetus Guard 13697 | -6/Cetus | Discovered new exit (range 22) 13716 | -6/Cetus | Spotted Cetus Guard 13717 | -6/Cetus | Spotted Cetus Guard 13730 | -6/Cetus | Spotted Cetus Guard 13735 | -6/Cetus | Spotted Cetus Guard 13742 | -6/Cetus | Destroyed Cetus Guard 13748 | -6/Cetus | Destroyed Cetus Guard 13753 | -6/Cetus | Destroyed Cetus Guard 13775 | -6/Cetus | Destroyed Cetus Guard 13870 | -6/Cetus | Discovered exit to Factory (range 23) 13884 | -6/Cetus | Met Revision 17 13944 | -6/Cetus | Lrg. Botcube activated 13976 | -6/Cetus | Lrg. Botcube completed mutation into treaded form, armed with 3 guns, 1 cannon. 13985 | -6/Cetus | Entered Archives 13985 | -6/Archives | Accompanied by 1 ally 14007 | -6/Archives | Met Zhirov 14007 | -6/Archives | Discovered new exit (range 22) 14010 | -6/Archives | Discovered new exit (range 22) 14013 | -6/Archives | Reinforcements dispatched to Archives 14038 | -6/Archives | Build established: Scavenger-Mutant 14055 | -6/Archives | Attached CPS modules to Large Mutated Botcube. 14058 | -6/Archives | Reinforcements dispatched to Archives 14060 | -6/Archives | Zhirov warped through subspace 14061 | -6/Archives | Entered Hub_04(d) 14061 | -6/Hub_04(d) | Accompanied by 1 ally 14064 | -6/Hub_04(d) | Discovered exit to Factory (range 10) 14141 | -6/Hub_04(d) | Discovered exit to Factory (range 10) 14283 | -6/Hub_04(d) | Garrison activated, responded to threat 14417 | -6/Hub_04(d) | Core integrity fell below 20% 14459 | -6/Hub_04(d) | Lost 6 parts (1p1n2u2w) 14472 | -6/Hub_04(d) | Found Lrg. Botcube 14550 | -6/Hub_04(d) | Network Hub disabled 14588 | -6/Hub_04(d) | Spotted Lightning 14589 | -6/Hub_04(d) | Crushed by falling debris 14593 | -6/Hub_04(d) | Spotted Lightning 14593 | -6/Hub_04(d) | Released all parts (7) 14596 | -6/Hub_04(d) | Destroyed by Lightning with EMDS Last Messages --------------- 14586_ Slug penetrates Wall. 14589_ The unstable cave ceiling collapses. 14589_ Crushed by falling debris. 14589_ Adv. KE Penetrator destroyed. 14589_ System corrupted by crushing effect (+5). 14589_ Lgt. Antimatter Reactor destroyed. 14589_ System corrupted by crushing effect (+1). 14593_ Released Centrium Medium Armor Plating. 14593_ Released Adv. KE Penetrator. 14593_ Released Cmb. Airjet. 14593_ Released Med. Storage Unit. 14593_ Released Exp. Optical Array. 14593_ Released Carbon-fiber Leg. 14593_ Dropped CPS Tube. 14594_ Dropped Imp. Actuator Array. 14594_ Dropped Matter Compressor. 14595_ Penetrated by EMDS Slug. 14595_ Acquired Deep Structural Scanner. 14596_ Penetrated by EMDS Slug. Map ----- +----------------------------------------------------+ | ??????????????????# T"## " "%"*!!" ###### | | ??????????????????# ""## "!=!"["%# # | | ??????????????????? ""## ]==%*%!%*%# " # | | ??????????????????? ??# ![!!*[%[* # " # | | ??????????????????"""##/######+####+###### % ##+# | | ?????????????????#" ^ %= =* + # | | ?????????????????#" ^^ ! ###### + | | ??????????????? #" ############## #????# " # | | ??????????????? #" #######??????# #????# " #! | | ???????????????? #" " #??????# #????#* # | | ????????????????#"" " #??????# #????# ""# | | ????????##?##?### " ; ########"#????# T"# | | ???????? # ## #; ; # = #????#! ""# | | ?????????" # ; h; # #????# # | | ?????????? " ; ;;;;;;; ########### | | ???????????# ;;;;;; ;;;;;;; # | | ???????????# ; ;; " | | ???????????# ; ;; ! # ! | | ?????????#?# ; ;; #####+######+# | | ?????????# # ; ;; #?? ?# | | ?????????# ; ;; # !! # " | | ??????????# ; ;;######### !! # " | | ???????????# ; ; #?????# # | | ???????????# ; |! #?????## # """ | | ??????###### ; *[!! #??????# """ # | | ??????# ; %=!@[= #??????# # """ | | ????????#### ;;;;;;;;/%;=! #??????# """ # | | ???????????## # ! ##??????# ##### | | ????????????### ##???????##########???? | | ??????????????##### #######?????????????????????? | | ??????????????????####???????????????????????????? | | ?????????????????????????????????????????????????? | | ?????????????????????????????????????????????????? | | ?????????????????????????????????????????????????? | | ?????????????????????????????????????????????????? | | ?????????????????????????????????????????????????? | | ?????????????????????????????????????????????????? | | ?????????????????????????????????????????????????? | | ?????????????????????????????????????????????????? | | ?????????????????????????????????????????????????? | | ?????????????????????????????????????????????????? | | ?????????????????????????????????????????????????? | | ?????????????????????????????????????????????????? | | ?????????????????????????????????????????????????? | | ?????????????????????????????????????????????????? | | ?????????????????????????????????????????????????? | | ?????????????????????????????????????????????????? | | | | | | | +----------------------------------------------------+ Best States ------------- Heat Dissipation 56 Energy Generation 47 Energy Capacity 435 Matter Stores 300 Matter Capacity 300 Sight Range 23 Robot Scan Range 16 Terrain Scan Density 10 Corruption Containment 12 Armor Coverage 3600 Resistance: TH 30 Resistance: EM 90 Weapon Shielding 66 Evasion (%) 55 Core Analysis 6 Armor Integrity Analysis 30 Recoil Reduction 2 Offensive Hacking 20 Item Schematics ----------------- Deep Structural Scanner | -6/Factory | Extrapolated Mak. ECM Suite | -6/Factory | Extrapolated 0b10 Decoder Chip [Skirmisher] | -6/Factory | Extrapolated Centrium Wheel | -6/Factory | Scanalyzed Adv. Myomer Leg | -6/Factory | Scanalyzed Machine Rigger | -6/Factory | Extrapolated Mak. Thermal Plating | -6/Factory | Extrapolated Mak. Spear | -6/Factory | Extrapolated Mak. Coolant Network | -6/Factory | Extrapolated Tactical Coordination Suite | -6/Factory | Extrapolated Beamcaster | -6/Factory | Extrapolated Imp. Force Field | -6/Factory | Hacked Humpback | -6/Extension | Extrapolated Mak. Light Armor Plating | -6/Extension | Extrapolated Mak. Hacking Suite | -6/Extension | Extrapolated Mak. System Shield | -6/Extension | Extrapolated 0b10 Decoder Chip [Generic] | -6/Extension | Extrapolated 0b10 Decoder Chip [Scout] | -6/Extension | Extrapolated Mak. Terrain Scanner | -6/Extension | Extrapolated Energy Deflector | -6/Extension | Extrapolated Mak. Hover Unit | -6/Extension | Extrapolated Mak. Core Shielding | -6/Cetus | Extrapolated Hvy. Beamcaster | -6/Cetus | Extrapolated Slug Cannon | -6/Cetus | Extrapolated Bore Cannon | -6/Cetus | Extrapolated Mak. Sensor Array | -6/Cetus | Extrapolated Mak. System Restoration Module | -6/Archives | Extrapolated Mak. Targeting Computer | -6/Hub_04(d) | Extrapolated Robot Schematics ------------------ None Fabricated ------------ Nothing Repaired ---------- Gravmag Array | 34% | -6/Extension Studied --------- None Alien Tech Used ----------------- None Achievements -------------- Myspace Challenges ------------ None Game ------ Seed AuthchipMeleeLeg Manual? 0 Play Time 02:24:08 Cumulative 407.9 hours Start 2026.01.11 @ 04:41:21 End 2026.01.11 @ 23:37:58 Sessions 5 Manual Loads 0 Difficulty Rogue Special Mode None Game No. 148 Rogue 148 Adventurer 0 Explorer 0 Win Type - Total 10 Types 5/0/1/1/0/0/0/1/0/2 Lore% 86 Gallery% 81 Achievement% 71 Wizard Run 0 Options --------- Layout 1 ASCII 0 Keyboard 0 Movement Mouse Keybinds 0 Fullscreen 2 Font 32/SmallcapsGlow Map View 50x35 Zoom Use 0% Tactical HUD 1 Map Filters NONE Filters NONE Steam 1 RUN: d0ed3ac0-519a-4097-acf8-f1bf28dbe538